bitfinex/quotes_BTCUSD_20240803
["timestamp","ask_amount","ask_price","bid_price","bid_amount"]
[1722670572368,1.37373388,61865.0,61864.0,0.16379127]
[1722670573055,1.53743506,61865.0,61864.0,0.02469127]
[1722670573471,1.37373388,61865.0,61864.0,0.02469127]
[1722670574538,1.77355205,61865.0,61864.0,0.02469127]
[1722670574749,0.878676,61861.0,61860.0,0.000913]
[1722670574959,1.38322326,61861.0,61860.0,0.000913]
[1722670575169,1.62570226,61861.0,61860.0,0.000913]
[1722670575385,1.86818126,61861.0,61860.0,0.000913]
[1722670575599,1.94538126,61861.0,61860.0,0.000913]
[1722670576022,1.95938126,61861.0,61860.0,0.001913]
[1722670576883,1.97338126,61861.0,61860.0,0.002913]
[1722670577753,1.95938126,61861.0,61860.0,0.001913]
[1722670578380,1.95938126,61861.0,61860.0,0.083213]
[1722670578381,1.63970226,61861.0,61860.0,0.083213]
[1722670578627,1.65370226,61861.0,61860.0,0.083213]
[1722670578840,1.55817048,61861.0,61860.0,0.001913]
[1722670579045,1.64749062,61861.0,61860.0,0.001913]
[1722670579258,1.57513438,61861.0,61860.0,0.001913]
[1722670579483,1.78639144,61861.0,61860.0,0.001913]
[1722670580555,1.78604214,61861.0,61860.0,0.001913]
[1722670581512,1.72984214,61861.0,61860.0,0.001913]
[1722670581733,1.72434214,61861.0,61860.0,0.001913]
[1722670582431,1.72390441,61861.0,61860.0,0.001913]
[1722670582648,1.64670441,61861.0,61860.0,0.001913]
[1722670582862,1.64670441,61861.0,61860.0,0.061913]
[1722670583077,1.64670441,61861.0,61860.0,0.143213]
[1722670584593,1.64670441,61861.0,61860.0,0.001913]
[1722670585920,1.64637187,61861.0,61860.0,0.001913]
[1722670586597,1.75424403,61861.0,61860.0,0.001913]
[1722670587695,1.64637187,61861.0,61860.0,0.001913]
[1722670588106,1.75448722,61861.0,61860.0,0.001913]
[1722670588548,1.754487,61861.0,61860.0,0.001913]
[1722670588969,1.64637187,61861.0,61860.0,0.001913]
[1722670589182,1.75447458,61861.0,61860.0,0.001913]
[1722670589403,1.57331468,61861.0,61860.0,0.001913]
[1722670589615,1.64548057,61861.0,61860.0,0.001913]
[1722670589837,1.48581424,61861.0,61860.0,0.001913]
[1722670590052,1.75355575,61861.0,61860.0,0.001913]
[1722670591072,1.75373354,61861.0,61860.0,0.001913]
[1722670591268,1.64547376,61861.0,61860.0,0.001913]
[1722670591466,1.75373354,61861.0,61860.0,0.001913]
[1722670591930,1.75379413,61861.0,61860.0,0.001913]
[1722670592664,1.75379415,61861.0,61860.0,0.001913]
[1722670592877,1.48581424,61861.0,61860.0,0.001913]
[1722670593083,1.6466285,61861.0,61860.0,0.001913]
[1722670593297,1.75497089,61861.0,61860.0,0.001913]
[1722670593512,1.75497061,61861.0,61860.0,0.001913]
[1722670593723,1.6466285,61861.0,61860.0,0.001913]
[1722670594776,1.75476951,61861.0,61860.0,0.001913]
[1722670595940,1.6466285,61861.0,61860.0,0.001913]
[1722670596211,1.75478717,61861.0,61860.0,0.001913]
[1722670596635,1.75379328,61861.0,61860.0,0.001913]
[1722670597046,2.16677228,61861.0,61860.0,0.001913]
[1722670597254,1.99627228,61861.0,61860.0,0.140613]
[1722670597901,1.75379328,61861.0,61860.0,0.140613]
[1722670598102,1.64563424,61861.0,61860.0,0.140613]
[1722670599308,1.75379033,61861.0,61860.0,0.140613]
[1722670600123,1.48581424,61861.0,61860.0,0.140613]
[1722670600372,1.75393669,61861.0,61860.0,0.140613]
[1722670600692,1.75415288,61861.0,61860.0,0.140613]
[1722670603667,1.43547388,61861.0,61860.0,0.140613]
[1722670603876,1.20782268,61861.0,61860.0,0.140613]
[1722670604074,0.95428278,61861.0,61860.0,0.140613]
[1722670604868,0.92628278,61861.0,61860.0,0.139613]
[1722670605070,0.94028278,61861.0,61860.0,0.139613]
[1722670605271,1.01870153,61861.0,61860.0,0.139613]
[1722670606221,1.03270153,61861.0,61860.0,0.139613]
[1722670607869,0.88724082,61861.0,61860.0,0.139613]
[1722670608247,1.03267685,61861.0,61860.0,0.139613]
[1722670608447,0.88724082,61861.0,61860.0,0.139613]
[1722670608654,1.03267313,61861.0,61860.0,0.139613]
[1722670611281,0.62176182,61861.0,61860.0,0.139613]
[1722670612718,0.85024082,61861.0,61860.0,0.139613]
[1722670612934,0.86224082,61861.0,61860.0,0.139613]
[1722670613355,0.60576182,61861.0,61860.0,0.139613]
[1722670613563,0.86124082,61861.0,61860.0,0.139613]
[1722670617458,0.37628282,61861.0,61860.0,0.139613]
[1722670617671,0.25504382,61861.0,61860.0,0.139613]
[1722670618165,0.61876182,61861.0,61860.0,0.139613]
[1722670620832,0.37628282,61861.0,61860.0,0.139613]
[1722670621079,0.37616251,61861.0,61860.0,0.139613]
[1722670621303,0.37616251,61861.0,61860.0,0.14600028]
[1722670621304,0.18245924,61861.0,61860.0,0.14600028]
[1722670622208,0.17045924,61861.0,61860.0,0.14600028]
[1722670622644,0.15745924,61861.0,61860.0,0.14600028]
[1722670623121,0.17145924,61861.0,61860.0,0.14600028]
[1722670623766,0.29269824,61861.0,61860.0,0.139613]
[1722670624189,0.29269824,61861.0,61860.0,0.14598527]
[1722670625395,0.17145924,61861.0,61860.0,0.139613]
[1722670625615,0.17145924,61861.0,61860.0,0.14597388]
[1722670626294,0.24510844,61861.0,61860.0,0.14597388]
[1722670626754,0.36532979,61861.0,61860.0,0.14597388]
[1722670627215,0.43906918,61861.0,61860.0,0.14597388]
[1722670627426,0.24409079,61861.0,61860.0,0.14597388]
[1722670627639,0.24409079,61861.0,61860.0,0.20217388]
[1722670627849,0.17145924,61861.0,61860.0,0.20217388]
[1722670628277,0.21987405,61861.0,61860.0,0.32341488]
[1722670628486,0.17145924,61861.0,61860.0,0.56589788]
[1722670628872,0.17145924,61861.0,61860.0,0.32341488]
[1722670629092,0.17145924,61861.0,61860.0,0.20217388]
[1722670631143,0.17145924,61861.0,61860.0,0.32341488]
[1722670632437,0.17145924,61861.0,61860.0,0.80838088]
[1722670632651,0.17145924,61861.0,61860.0,0.56589788]
[1722670633517,0.16345924,61861.0,61860.0,0.56589788]
[1722670633749,0.16945924,61861.0,61860.0,0.56589788]
[1722670633961,0.1620722,61861.0,61860.0,0.80838088]
[1722670634172,0.1620722,61861.0,61860.0,0.56589788]
[1722670635146,0.1670722,61861.0,61860.0,0.56589788]
[1722670636270,0.1610722,61861.0,61860.0,0.56589788]
[1722670636504,0.1610722,61861.0,61860.0,0.80838088]
[1722670636505,0.1560722,61861.0,61860.0,0.80838088]
[1722670636867,0.1560722,61861.0,61860.0,0.81038088]
[1722670637660,0.00083,61864.0,61863.0,0.363706]
[1722670637862,0.15828924,61864.0,61863.0,0.561906]
[1722670638064,0.15828924,61864.0,61863.0,0.56823762]
[1722670638917,0.16228924,61864.0,61863.0,0.56823762]
[1722670639288,0.16228924,61864.0,61863.0,0.81070862]
[1722670639716,0.15928924,61864.0,61863.0,0.81070862]
[1722670640114,0.15828924,61864.0,61863.0,0.81070862]
[1722670640310,0.15828924,61864.0,61863.0,0.56823762]
[1722670640717,0.15828924,61864.0,61863.0,0.51203762]
[1722670640927,0.15828924,61864.0,61863.0,0.56823762]
[1722670641121,0.16028924,61864.0,61863.0,0.56823762]
[1722670646320,0.16028924,61864.0,61863.0,0.32576662]
[1722670646691,0.16028924,61864.0,61863.0,0.56823762]
[1722670647568,0.16028924,61864.0,61863.0,1.05317962]
[1722670647569,0.00283,61864.0,61863.0,1.05317962]
[1722670648441,0.00083,61864.0,61863.0,1.05317962]
[1722670648904,0.00183,61864.0,61863.0,1.06217962]
[1722670649140,0.00183,61864.0,61863.0,0.81970862]
[1722670651773,0.00183,61864.0,61863.0,0.52103762]
[1722670651774,0.15928924,61864.0,61863.0,0.52103762]
[1722670651987,0.15928924,61864.0,61863.0,0.15733162]
[1722670652672,0.28052224,61864.0,61863.0,0.15733162]
[1722670653084,0.15928924,61864.0,61863.0,0.151]
[1722670653502,0.15928924,61864.0,61863.0,0.15732903]
[1722670653921,0.28052224,61864.0,61863.0,0.15732903]
[1722670654130,0.28052224,61864.0,61863.0,0.01532903]
[1722670655645,0.57142552,61864.0,61863.0,0.01532903]
[1722670656078,0.57142552,61864.0,61863.0,0.009]
[1722670656300,0.32895852,61864.0,61863.0,0.005]
[1722670656721,0.33095852,61864.0,61863.0,0.005]
[1722670657133,0.32895852,61864.0,61863.0,0.005]
[1722670657584,0.33195852,61864.0,61863.0,0.005]
[1722670658021,0.32795852,61864.0,61862.0,0.0562]
[1722670658224,0.15745924,61863.0,61862.0,0.0562]
[1722670658426,0.20589552,61863.0,61862.0,0.0562]
[1722670659081,0.20589552,61863.0,61862.0,0.06252903]
[1722670659910,0.32713052,61863.0,61862.0,0.06252903]
[1722670660538,0.32713052,61863.0,61860.0,0.142913]
[1722670660768,0.04843628,61862.0,61860.0,0.142913]
[1722670660985,0.15745924,61861.0,61860.0,0.142913]
[1722670661869,0.15745924,61861.0,61860.0,0.14924203]
[1722670662283,0.23011367,61861.0,61860.0,0.14924203]
[1722670662495,0.23011367,61861.0,61860.0,0.15224203]
[1722670662735,0.23011367,61861.0,61860.0,0.145913]
[1722670662940,0.23011367,61861.0,61860.0,0.15225136]
[1722670663362,0.15745924,61861.0,61860.0,0.15225136]
[1722670665072,0.23019805,61861.0,61860.0,0.15225136]
[1722670665775,0.15745924,61861.0,61860.0,0.15225136]
[1722670666696,0.25433181,61861.0,61860.0,0.15225136]
[1722670667395,0.25446258,61861.0,61860.0,0.15225136]
[1722670668065,0.25446258,61861.0,61860.0,0.20845136]
[1722670668305,0.15745924,61861.0,61860.0,0.20845136]
[1722670668947,0.25446785,61861.0,61860.0,0.20845136]
[1722670669162,0.15745924,61861.0,61860.0,0.20845136]
[1722670670294,0.35138344,61861.0,61860.0,0.20845136]
[1722670671376,0.27871341,61861.0,61860.0,0.20845136]
[1722670671830,0.34768936,61861.0,61860.0,0.20845136]
[1722670672061,0.34772165,61861.0,61860.0,0.20845136]
[1722670672286,0.15745924,61861.0,61860.0,0.20845136]
[1722670672508,0.27869824,61861.0,61860.0,0.14425136]
[1722670673409,0.34772778,61861.0,61860.0,0.14425136]
[1722670673631,0.22648878,61861.0,61860.0,0.14425136]
[1722670674080,0.34772778,61861.0,61860.0,0.14425136]
[1722670675005,0.22648878,61861.0,61860.0,0.14425136]
[1722670675435,0.34772778,61861.0,61860.0,0.14425136]
[1722670676096,0.15745924,61861.0,61860.0,0.14425136]
[1722670676312,0.22654324,61861.0,61860.0,0.14425136]
[1722670676767,0.22656403,61861.0,61860.0,0.14425136]
[1722670678029,0.34780303,61861.0,61860.0,0.14425136]
[1722670679180,0.83276103,61861.0,61860.0,0.01025136]
[1722670679390,0.59028203,61861.0,61860.0,0.003913]
[1722670679599,0.58970588,61861.0,61860.0,0.003913]
[1722670681619,0.58970588,61861.0,61860.0,0.137113]
[1722670681620,0.22598788,61861.0,61860.0,0.137113]
[1722670681826,0.22598788,61861.0,61860.0,0.14345439]
[1722670681827,0.34722688,61861.0,61860.0,0.14345439]
[1722670682054,0.58970588,61861.0,61860.0,0.14345439]
[1722670682480,0.34722688,61861.0,61860.0,0.137113]
[1722670682680,0.58970588,61861.0,61860.0,0.060113]
[1722670682939,0.22598788,61861.0,61860.0,0.20405439]
[1722670683153,0.34722688,61861.0,61860.0,0.20405439]
[1722670683913,0.34722688,61861.0,61860.0,0.197713]
[1722670684111,0.34722688,61861.0,61860.0,0.20405439]
[1722670685163,0.22598788,61861.0,61860.0,0.20405439]
[1722670685364,0.34722688,61861.0,61860.0,0.20405439]
[1722670685739,0.34811384,61861.0,61860.0,0.20405439]
[1722670685937,0.22687484,61861.0,61860.0,0.20405439]
[1722670686141,0.15745924,61861.0,61860.0,0.20405439]
[1722670686341,0.22687481,61861.0,61860.0,0.20405439]
[1722670688194,0.34811381,61861.0,61860.0,0.20405439]
[1722670689040,0.34704128,61861.0,61860.0,0.20405439]
[1722670689248,0.27762571,61861.0,61860.0,0.20405439]
[1722670689453,0.34709815,61861.0,61860.0,0.20405439]
[1722670691350,0.22585915,61861.0,61860.0,0.20405439]
[1722670692306,0.34709815,61861.0,61860.0,0.20405439]
[1722670693222,0.34439588,61861.0,61860.0,0.20405439]
[1722670693419,0.22315688,61861.0,61860.0,0.20405439]
[1722670697478,0.22324636,61861.0,61860.0,0.32529539]
[1722670697682,0.22324636,61861.0,61860.0,0.20405439]
[1722670698097,0.2230518,61861.0,61860.0,0.20405439]
[1722670700695,0.15619215,61861.0,61860.0,0.20405439]
[1722670700901,0.22317461,61861.0,61860.0,0.32529539]
[1722670701324,0.22317461,61861.0,61860.0,0.20405439]
[1722670702118,0.22317461,61861.0,61860.0,0.32529539]
[1722670702523,0.22317461,61861.0,61860.0,0.20405439]
[1722670704069,0.22317461,61861.0,61860.0,0.56777839]
[1722670704275,0.22317461,61861.0,61860.0,0.81026139]
[1722670704482,0.15619215,61861.0,61860.0,0.81026139]
[1722670705012,0.25327422,61861.0,61860.0,0.81026139]
[1722670706859,0.15619215,61861.0,61860.0,0.81026139]
[1722670707065,0.27754662,61861.0,61860.0,0.81026139]
[1722670708243,0.27754332,61861.0,61860.0,0.81026139]
[1722670708454,0.15619215,61861.0,61860.0,0.81026139]
[1722670708727,0.2775471,61861.0,61860.0,0.81026139]
[1722670709086,0.15619215,61861.0,61860.0,0.81026139]
[1722670709290,0.15619215,61861.0,61860.0,0.56777839]
[1722670709492,0.22325078,61861.0,61860.0,0.56777839]
[1722670709705,0.15619215,61861.0,61860.0,0.56777839]
[1722670709925,0.15702215,61861.0,61860.0,0.56777839]
[1722670710128,0.22409301,61861.0,61860.0,0.56777839]
[1722670710416,0.15702215,61861.0,61860.0,0.56777839]
[1722670711095,0.27837382,61861.0,61860.0,0.56777839]
[1722670711298,0.27837481,61861.0,61860.0,0.56777839]
[1722670711575,0.27837481,61861.0,61860.0,0.51157839]
[1722670711784,0.27837481,61861.0,61860.0,0.56777839]
[1722670712627,0.27837457,61861.0,61860.0,0.56777839]
[1722670712801,0.27837462,61861.0,61860.0,0.56777839]
[1722670713410,0.15702215,61861.0,61860.0,0.56777839]
[1722670714037,0.27837325,61861.0,61860.0,0.56777839]
[1722670722259,0.15702215,61861.0,61860.0,0.56777839]
[1722670722445,0.27835262,61861.0,61860.0,0.56777839]
[1722670726642,0.27835262,61861.0,61860.0,0.81026139]
[1722670726996,0.27835262,61861.0,61860.0,0.56777839]
[1722670727862,0.27835262,61861.0,61860.0,0.81026139]
[1722670730244,0.15702215,61861.0,61860.0,0.81026139]
[1722670730589,0.25410343,61861.0,61860.0,0.81026139]
[1722670731775,0.25410138,61861.0,61860.0,0.81026139]
[1722670736393,0.15702215,61861.0,61860.0,0.81026139]
[1722670736603,0.25409849,61861.0,61860.0,0.81026139]
[1722670737004,0.15702215,61861.0,61860.0,0.81026139]
[1722670737394,0.25409849,61861.0,61860.0,0.81026139]
[1722670738430,0.15702215,61861.0,61860.0,0.81026139]
[1722670739073,0.15702215,61861.0,61860.0,0.81977532]
[1722670739291,0.77183379,61861.0,61860.0,0.01976832]
[1722670739533,1.33375925,61861.0,61860.0,0.01025439]
[1722670739821,1.6963991,61861.0,61860.0,0.01025439]
[1722670740032,1.4439201,61861.0,61860.0,0.003913]
[1722670740243,1.18099815,61861.0,61860.0,0.000913]
[1722670740465,1.46546391,61861.0,61860.0,0.000913]
[1722670740704,2.05684172,61861.0,61860.0,0.000913]
[1722670740916,1.88930105,61861.0,61860.0,0.000913]
[1722670741142,1.98780832,61861.0,61860.0,0.000913]
[1722670741388,2.24428732,61861.0,61860.0,0.000913]
[1722670741613,2.24428732,61861.0,61840.0,0.47251164]
[1722670741614,1.319777,61854.0,61840.0,0.47251164]
[1722670741829,1.84281935,61854.0,61840.0,0.47251164]
[1722670742255,1.74202567,61854.0,61839.0,0.475]
[1722670742737,1.59874351,61854.0,61840.0,0.47251164]
[1722670742945,1.59838684,61854.0,61842.0,0.0562]
[1722670743192,1.59838684,61854.0,61839.0,0.5312]
[1722670743404,1.38388084,61854.0,61839.0,0.5312]
[1722670743831,1.38388084,61854.0,61839.0,0.0562]
[1722670745481,1.28723703,61854.0,61839.0,0.0562]
[1722670745682,1.38442508,61854.0,61839.0,0.177481]
[1722670746171,1.40442508,61854.0,61839.0,0.0562]
[1722670746389,1.30723703,61854.0,61839.0,0.177481]
[1722670746607,1.45227801,61854.0,61839.0,0.177481]
[1722670747019,1.43227911,61854.0,61840.0,0.12128]
[1722670747226,1.28723703,61854.0,61840.0,0.12128]
[1722670747401,1.43227551,61854.0,61840.0,0.12128]
[1722670747983,1.28723703,61854.0,61840.0,0.12128]
[1722670748187,1.43227551,61854.0,61840.0,0.12128]
[1722670748393,1.27723703,61854.0,61843.0,0.005]
[1722670749275,1.33343703,61854.0,61843.0,0.005]
[1722670749773,1.35268147,61854.0,61843.0,0.005]
[1722670749999,1.27573024,61854.0,61843.0,0.005]
[1722670750208,1.35290815,61854.0,61843.0,0.005]
[1722670751335,1.33290815,61854.0,61843.0,0.005]
[1722670752347,1.33290815,61854.0,61843.0,0.0806]
[1722670753243,1.33281343,61854.0,61843.0,0.0806]
[1722670755567,1.45350357,61854.0,61843.0,0.0806]
[1722670756766,1.45364754,61854.0,61843.0,0.0806]
[1722670758005,1.45363086,61854.0,61843.0,0.0806]
[1722670760347,1.45338523,61854.0,61843.0,0.0806]
[1722670760691,1.45338467,61854.0,61843.0,0.0806]
[1722670763623,1.55002228,61854.0,61843.0,0.0806]
[1722670765023,1.57002228,61854.0,61843.0,0.0806]
[1722670765188,1.55002228,61854.0,61843.0,0.0806]
[1722670766225,0.26244021,61854.0,61853.0,0.086813]
[1722670766425,0.18545924,61854.0,61853.0,0.45971879]
[1722670767211,0.17145924,61854.0,61853.0,0.09595379]
[1722670767406,0.15745924,61854.0,61853.0,0.21720879]
[1722670767877,0.16345924,61854.0,61853.0,0.21720879]
[1722670768692,0.24368232,61854.0,61853.0,0.21720879]
[1722670769105,0.28871224,61854.0,61853.0,0.09595379]
[1722670769378,0.36494835,61854.0,61853.0,0.09595379]
[1722670769574,0.24369535,61854.0,61853.0,0.09595379]
[1722670770196,0.84996035,61854.0,61853.0,0.01005379]
[1722670770431,1.04137424,61854.0,61853.0,0.01005379]
[1722670770658,1.01724657,61854.0,61853.0,0.000913]
[1722670770924,1.04049094,61854.0,61853.0,0.000913]
[1722670771155,1.03966877,61854.0,61853.0,0.000913]
[1722670771430,0.87261761,61854.0,61853.0,0.000913]
[1722670771681,0.96675657,61854.0,61853.0,0.000913]
[1722670772164,1.01504947,61854.0,61853.0,0.000913]
[1722670772401,0.96675657,61854.0,61853.0,0.000913]
[1722670772655,1.03919423,61854.0,61853.0,0.000913]
[1722670772891,0.96675657,61854.0,61853.0,0.000913]
[1722670773181,1.03919423,61854.0,61853.0,0.000913]
[1722670773582,0.96675657,61854.0,61853.0,0.000913]
[1722670773790,1.01505974,61854.0,61853.0,0.000913]
[1722670773991,1.03921133,61854.0,61853.0,0.000913]
[1722670774197,1.06336292,61854.0,61853.0,0.000913]
[1722670774408,1.06281681,61854.0,61853.0,0.000913]
[1722670775172,0.82031081,61854.0,61853.0,0.000913]
[1722670775384,0.96621046,61854.0,61853.0,0.000913]
[1722670775612,0.87224934,61854.0,61853.0,0.000913]
[1722670776068,1.03762738,61854.0,61853.0,0.000913]
[1722670776521,0.96516418,61854.0,61853.0,0.000913]
[1722670777222,1.03765099,61854.0,61853.0,0.000913]
[1722670777454,0.24298434,61854.0,61853.0,0.148113]
[1722670777720,0.36423734,61854.0,61853.0,0.071313]
[1722670777966,0.36423734,61854.0,61853.0,0.08040266]
[1722670777967,0.36442763,61854.0,61853.0,0.08040266]
[1722670778215,0.24317463,61854.0,61853.0,0.08040266]
[1722670778454,0.24317463,61854.0,61853.0,0.071313]
[1722670778687,0.24317463,61854.0,61853.0,0.08040266]
[1722670779410,0.29150683,61854.0,61853.0,0.08040266]
[1722670779876,0.24317463,61854.0,61853.0,0.08040266]
[1722670780113,0.29150683,61854.0,61853.0,0.08040266]
[1722670780339,0.31567293,61854.0,61853.0,0.08040266]
[1722670780568,0.24317463,61854.0,61853.0,0.071313]
[1722670780793,0.31567293,61854.0,61853.0,0.08041153]
[1722670781258,0.43692593,61854.0,61853.0,0.08041153]
[1722670781488,0.4610765,61854.0,61853.0,0.07541153]
[1722670781725,0.46274575,61854.0,61853.0,0.07541153]
[1722670782233,0.4627457,61854.0,61853.0,0.07541153]
[1722670782703,0.36609683,61854.0,61853.0,0.01001153]
[1722670783437,0.72941392,61854.0,61853.0,0.01001153]
[1722670783861,0.72941392,61854.0,61853.0,0.000913]
[1722670784096,0.60860283,61854.0,61853.0,0.000913]
[1722670784331,0.36609683,61854.0,61853.0,0.000913]
[1722670785085,0.36605046,61854.0,61853.0,0.000913]
[1722670788602,0.28871224,61854.0,61853.0,0.000913]
[1722670788859,0.36602968,61854.0,61853.0,0.000913]
[1722670789095,0.60853568,61854.0,61853.0,0.000913]
[1722670789334,0.36602968,61854.0,61853.0,0.000913]
[1722670791283,0.60853568,61854.0,61853.0,0.000913]
[1722670791803,0.36602968,61854.0,61853.0,0.000913]
[1722670792288,0.53121824,61854.0,61853.0,0.000913]
[1722670799414,0.28871224,61854.0,61853.0,0.000913]
[1722670799554,0.36603029,61854.0,61853.0,0.000913]
[1722670799991,0.36602965,61854.0,61853.0,0.01002864]
[1722670803922,0.24477665,61854.0,61853.0,0.13628364]
[1722670804130,0.24477665,61854.0,61853.0,0.01502864]
[1722670804337,0.24477665,61854.0,61853.0,0.15732864]
[1722670805584,0.24477665,61854.0,61853.0,0.27858364]
[1722670805998,0.24477665,61854.0,61853.0,0.15732864]
[1722670806418,0.24477665,61854.0,61853.0,0.27858364]
[1722670806837,0.24477665,61854.0,61853.0,0.15732864]
[1722670807041,0.24175707,61854.0,61853.0,0.27858364]
[1722670810341,0.24175707,61854.0,61853.0,0.33478364]
[1722670811104,0.16745924,61854.0,61853.0,0.33478364]
[1722670811303,0.24180518,61854.0,61853.0,0.33478364]
[1722670811504,0.16745924,61854.0,61853.0,0.33478364]
[1722670811708,0.16745924,61854.0,61853.0,0.81980364]
[1722670811709,0.24162196,61854.0,61853.0,0.81980364]
[1722670812356,0.08416097,61854.0,61853.0,1.06231364]
[1722670812548,0.01,61854.0,61853.0,1.30482364]
[1722670813030,0.01,61854.0,61853.0,1.06231364]
[1722670813394,0.006,61854.0,61853.0,1.06231364]
[1722670813803,0.007,61854.0,61853.0,1.06731364]
[1722670814422,0.001,61854.0,61853.0,1.06731364]
[1722670814765,0.002,61854.0,61853.0,1.07331364]
[1722670815400,0.002,61854.0,61853.0,1.32582364]
[1722670815615,0.002,61854.0,61853.0,1.42582364]
[1722670815821,0.002,61854.0,61853.0,1.54386809]
[1722670816244,0.002,61854.0,61853.0,1.11711364]
[1722670816463,0.002,61854.0,61853.0,1.17331364]
[1722670819088,0.002,61854.0,61853.0,1.11711364]
[1722670819317,0.002,61854.0,61853.0,0.93080364]
[1722670819563,0.002,61854.0,61853.0,0.68829364]
[1722670819997,0.002,61854.0,61853.0,0.93080364]
[1722670826041,0.15945924,61854.0,61853.0,0.28958364]
[1722670826691,0.15945924,61854.0,61853.0,0.53209364]
[1722670828739,0.15945924,61854.0,61853.0,0.28958364]
[1722670828941,1.64078376,61854.0,61853.0,0.02102864]
[1722670829241,1.85113722,61854.0,61853.0,0.011913]
[1722670829455,1.61526073,61854.0,61853.0,0.011913]
[1722670829660,1.85083513,61854.0,61853.0,0.011913]
[1722670830511,1.87083513,61854.0,61853.0,0.011913]
[1722670830719,1.89245232,61854.0,61853.0,0.005913]
[1722670830930,1.89145232,61854.0,61853.0,0.000913]
[1722670831132,1.91195932,61854.0,61853.0,0.000913]
[1722670831339,1.92595932,61854.0,61853.0,0.000913]
[1722670831551,1.90095932,61854.0,61853.0,0.000913]
[1722670831753,1.91495932,61854.0,61853.0,0.000913]
[1722670831958,1.92895932,61854.0,61853.0,0.000913]
[1722670832789,1.82117101,61854.0,61853.0,0.000913]
[1722670833003,1.61584324,61854.0,61853.0,0.000913]
[1722670833209,1.95573181,61854.0,61853.0,0.000913]
[1722670833414,1.70829986,61854.0,61853.0,0.000913]
[1722670833622,1.84736223,61854.0,61853.0,0.000913]
[1722670834915,1.82736223,61854.0,61853.0,0.000913]
[1722670835108,1.84736223,61854.0,61853.0,0.000913]
[1722670835315,2.01041264,61854.0,61853.0,0.000913]
[1722670835518,1.82736223,61854.0,61853.0,0.000913]
[1722670835733,1.99040381,61854.0,61853.0,0.000913]
[1722670836137,2.01040381,61854.0,61853.0,0.000913]
[1722670836346,2.01037693,61854.0,61853.0,0.000913]
[1722670836562,1.77885794,61854.0,61853.0,0.000913]
[1722670836782,1.82819999,61854.0,61853.0,0.000913]
[1722670837003,2.01121469,61854.0,61853.0,0.000913]
[1722670837212,1.84819999,61854.0,61853.0,0.000913]
[1722670837833,2.01118015,61854.0,61853.0,0.000913]
[1722670838825,1.84819999,61854.0,61853.0,0.000913]
[1722670839833,1.82819999,61854.0,61853.0,0.000913]
[1722670840037,1.84819999,61854.0,61853.0,0.000913]
[1722670840258,1.84718405,61854.0,61853.0,0.000913]
[1722670841285,1.82718405,61854.0,61853.0,0.000913]
[1722670842155,1.89148405,61854.0,61853.0,0.000913]
[1722670844110,1.58777805,61854.0,61853.0,0.000913]
[1722670844317,1.09109194,61854.0,61853.0,0.057113]
[1722670844688,0.88402175,61854.0,61853.0,0.057113]
[1722670845068,0.80572175,61854.0,61853.0,0.057113]
[1722670845321,0.54921575,61854.0,61853.0,0.000913]
[1722670845537,0.54921575,61854.0,61853.0,0.202713]
[1722670845538,0.33470975,61854.0,61853.0,0.202713]
[1722670845731,0.57721575,61854.0,61853.0,0.202713]
[1722670846019,0.57721575,61854.0,61853.0,0.21206085]
[1722670846221,0.59121575,61854.0,61853.0,0.21206085]
[1722670846431,0.59121575,61854.0,61853.0,0.15586085]
[1722670847140,0.57721575,61854.0,61853.0,0.15586085]
[1722670847343,0.57721575,61854.0,61853.0,0.15686085]
[1722670847344,0.59526458,61854.0,61853.0,0.15686085]
[1722670847526,0.56726458,61854.0,61853.0,0.147513]
[1722670847773,0.79577058,61854.0,61853.0,0.146513]
[1722670847993,1.05227658,61854.0,61853.0,0.001913]
[1722670848209,1.12352694,61854.0,61853.0,0.000913]
[1722670848632,1.2214463,61854.0,61853.0,0.002913]
[1722670848820,1.1954463,61854.0,61853.0,0.001913]
[1722670849097,1.1954463,61854.0,61853.0,0.002913]
[1722670849304,1.2094463,61854.0,61853.0,0.002913]
[1722670849492,1.20935327,61854.0,61853.0,0.002913]
[1722670849921,1.19635327,61854.0,61853.0,0.001913]
[1722670850321,1.21035327,61854.0,61853.0,0.002913]
[1722670850539,1.32109515,61854.0,61853.0,0.001913]
[1722670850765,1.31803362,61854.0,61853.0,0.001913]
[1722670850957,1.33203362,61854.0,61853.0,0.002913]
[1722670851982,1.28378326,61854.0,61853.0,0.002913]
[1722670852859,1.33203362,61854.0,61853.0,0.002913]
[1722670854132,1.28378326,61854.0,61853.0,0.002913]
[1722670854339,1.27840011,61854.0,61853.0,0.002913]
[1722670854777,1.1054806,61854.0,61853.0,0.002913]
[1722670854997,1.32566719,61854.0,61853.0,0.002913]
[1722670856097,1.27786365,61854.0,61853.0,0.002913]
[1722670856310,1.32611401,61854.0,61853.0,0.002913]
[1722670858321,0.81810201,61854.0,61853.0,0.148413]
[1722670858545,0.76985165,61854.0,61853.0,0.148413]
[1722670858954,0.52734565,61854.0,61853.0,0.148413]
[1722670859391,0.52734565,61854.0,61853.0,0.15945766]
[1722670860373,0.30671224,61854.0,61853.0,0.15945766]
[1722670860583,0.52981579,61854.0,61853.0,0.15945766]
[1722670861228,0.52981579,61854.0,61853.0,0.15630204]
[1722670861469,0.40856279,61854.0,61853.0,0.15630204]
[1722670861697,0.40856279,61854.0,61853.0,0.754688]
[1722670861698,0.21264611,61854.0,61853.0,0.754688]
[1722670861906,0.21264611,61854.0,61853.0,0.51906277]
[1722670862116,0.21264611,61854.0,61853.0,0.27655277]
[1722670862745,0.21264611,61854.0,61853.0,0.51906277]
[1722670863063,0.21264611,61854.0,61853.0,0.15529777]
[1722670863388,0.21264611,61854.0,61853.0,0.15429777]
[1722670863588,0.19864611,61854.0,61853.0,0.15429777]
[1722670863800,0.20664611,61854.0,61853.0,0.15529777]
[1722670864242,0.17945924,61854.0,61853.0,0.15529777]
[1722670864418,0.20217231,61854.0,61853.0,0.15429777]
[1722670864625,0.17245924,61854.0,61853.0,0.15529777]
[1722670864974,0.20914213,61854.0,61853.0,0.27655277]
[1722670865178,0.20914213,61854.0,61853.0,0.15529777]
[1722670867977,0.17245924,61854.0,61853.0,0.15529777]
[1722670868191,0.21045481,61854.0,61853.0,0.15529777]
[1722670870981,0.21128481,61854.0,61853.0,0.15529777]
[1722670871714,0.33253781,61854.0,61853.0,0.15529777]
[1722670871943,0.21128481,61854.0,61853.0,0.15529777]
[1722670872433,0.28362834,61854.0,61853.0,0.15529777]
[1722670872641,0.28362834,61854.0,61853.0,0.21139777]
[1722670873268,0.28362834,61854.0,61853.0,0.15529777]
[1722670873477,0.4104292,61854.0,61853.0,0.15529777]